[Event "Vezerkepzo GM May 2022"]
[Site "Budapest"]
[Date "2022.05.20"]
[Round "4.5"]
[White "Mazur, Stefan"]
[Black "Aveskulov, Valeriy"]
[Result "1-0"]
[ECO "C67"]
[WhiteElo "2423"]
[BlackElo "2531"]
[Annotator "TA"]
[PlyCount "55"]
[EventDate "2022.05.18"]
[EventType "tourn"]
[EventCountry "HUN"]
[SourceTitle "playchess.com"]
[Source "ChessBase"]
[SourceQuality "1"]
[TimeControl "5400+30"]

{[%evp 9,55,15,21,0,0,0,0,-5,21,27,33,25,74,82,78,86,91,25,43,37,88,84,110,107,266,264,348,364,450,463,432,318,295,313,274,262,556,379,383,364,385,373,391,380,493,485,645,613]} 1. e4 {[%emt 0:00:06]} e5 {[%emt 0:28:32]} 2. Nf3 {[%emt 0:00:46]} Nc6 {[%emt 0:00:03]} 3. Bb5 {[%emt 0:00:12]} Nf6 {[%emt 0:00:04]} 4. O-O {[%emt 0:02:07]} Nxe4 {[%emt 0:00:05]} 5. Re1 {[%emt 0:00:13]} Nd6 {[%emt 0:00:06]} 6. a4 {[%emt 0:00:22] C67: Ruy Lopez: Berlin Defence: 4 0-0 Nxe4.} Be7 {[%emt 0:00:31]} 7. Nc3 {[%emt 0:00:26] Prevents e4.} a6 {[%emt 0:03:36]} 8. Bf1 {[%emt 0:02:37] The position is equal.} O-O {[%emt 0:02:23] [#]} 9. Nxe5 $146 {[%emt 0:01:12]} ({Predecessor:} 9. d4 e4 10. Nxe4 Nxe4 11. Rxe4 d5 12. Re1 Bf5 13. c3 h6 14. a5 Be4 15. Nd2 {½-½ (33) Shuvalova,P (2516)-Lagno,K (2550) Warsaw 2021}) 9... Nf5 {[%emt 0:05:16]} 10. Nd5 {[%emt 0:04:03][%cal Od2d4]} Bc5 {[%emt 0:00:41]} (10... Nxe5 $11 11. Rxe5 d6 12. Nxe7+ Nxe7) 11. Nf3 $16 {[%emt 0:02:22]} Nce7 {[%emt 0:05:28]} 12. d4 {[%emt 0:02:43]} Bd6 {[%emt 0:00:06]} 13. Nc3 {[%emt 0:16:29] White is more active.} (13. Qd3 $16) 13... Bb4 $1 $11 {[%emt 0:01:53]} 14. g4 $36 {[%emt 0:03:46][%mdl 2048] White has some pressure.} Bxc3 {[%emt 0:06:42]} ({Better is} 14... Nh6 $14) 15. bxc3 $16 {[%emt 0:00:11]} Nd6 {[%emt 0:00:05]} 16. Ba3 {[%emt 0:08:06]} f5 $2 {[%emt 0:07:11] [#] Loses the game.} (16... b6 $16) 17. Bc4+ $1 $18 {[%emt 0:09:39][%mdl 512]} Kh8 {[%emt 0:02:56]} (17... Nxc4 18. Bxe7) 18. Ng5 {[%emt 0:10:16]} b6 {[%emt 0:15:38]} 19. Bxd6 {[%emt 0:06:32]} cxd6 {[%emt 0:00:04]} 20. Nf7+ {[%emt 0:02:47]} Rxf7 {[%emt 0:00:03]} 21. Bxf7 {[%emt 0:00:06]} Bb7 {[%emt 0:00:09]} 22. Qe2 {[%emt 0:01:09]} Nd5 {[%emt 0:00:05]} (22... Ng8 {was worth a try.} 23. Qd3 Be4) 23. Qe8+ {[%emt 0:02:47]} Qxe8 {[%emt 0:00:05]} 24. Rxe8+ {[%emt 0:00:05]} ({Less strong is} 24. Bxe8 Nf6 $18) 24... Rxe8 {[%emt 0:00:03]} 25. Bxe8 {[%emt 0:00:06]} Nf6 {[%emt 0:12:56]} 26. Re1 {[%emt 0:05:56]} g5 {[%emt 0:02:27] [#]} 27. Bxd7 $1 {[%emt 0:02:48][%mdl 512]} Nxd7 {[%emt 0:00:08]} (27... fxg4 28. Bf5) 28. Re8+ {[%emt 0:00:04] Weighted Error Value: White=0.22 (precise) /Black=0.49} 1-0

[Event "Vezerkepzo GM May 2022"]
[Site "Budapest"]
[Date "2022.05.21"]
[Round "5.1"]
[White "Aveskulov, Valeriy"]
[Black "Turzo, Attila"]
[Result "1-0"]
[ECO "B31"]
[WhiteElo "2531"]
[BlackElo "2338"]
[Annotator "TA"]
[PlyCount "119"]
[EventDate "2022.05.18"]
[EventType "tourn"]
[EventCountry "HUN"]
[SourceTitle "playchess.com"]
[Source "ChessBase"]
[SourceQuality "1"]
[TimeControl "5400+30"]

{[%evp 16,119,25,0,0,19,8,0,0,0,0,-17,-14,-25,0,-13,13,11,43,7,102,113,152,102,95,40,35,27,22,0,0,0,0,0,0,0,0,0,18,6,11,11,52,20,14,0,102,109,103,106,102,91,92,95,130,124,258,284,334,333,314,285,282,289,282,268,270,275,356,282,282,0,357,346,441,506,358,280,444,268,267,267,2559,2545,2381,2050,1740,1534,12827,12793,2027,2166,1724,1652,1556,1597,12838,12839,12839,12839,12840,12841,12840,12841,12839,12839]} 1. e4 {[%emt 0:00:04]} c5 {[%emt 0:00:14]} 2. Nf3 {[%emt 0:00:05]} Nc6 {[%emt 0:00:19]} 3. Bb5 {[%emt 0:00:03]} g6 {[%emt 0:00:13]} 4. O-O {[%emt 0:00:03]} Bg7 {[%emt 0:00:12]} 5. Re1 {[%emt 0:00:09]} e5 {[%emt 0:01:03]} 6. b4 {[%emt 0:00:17]} cxb4 {[%emt 0:02:25]} 7. a3 {[%emt 0:01:13]} Nge7 {[%emt 0:04:12]} 8. axb4 {[%emt 0:01:06]} O-O {[%emt 0:00:32]} 9. Bb2 {[%emt 0:09:17]} d5 {[%emt 0:08:02] B31: Sicilian: 2...Nc6 3 Bb5 g6.} 10. exd5 {[%emt 0:09:42]} Nd4 {[%emt 0:08:03]} 11. Nxd4 {[%emt 0:27:41]} exd4 {[%emt 0:00:22] The position is equal.} 12. Bc4 {[%emt 0:00:15]} Nxd5 {[%emt 0:01:25] [#]} 13. b5 $146 {[%emt 0:00:40]} ({Predecessor:} 13. Qf3 Nb6 14. Bb3 Qg5 15. Ra5 Qg4 16. Qxg4 Bxg4 17. f3 Bd7 18. Na3 a6 19. Rc5 {0-1 (53) Binham,T (2340)-Rikkonen,J Helsinki 1978}) 13... Be6 {[%emt 0:04:14]} 14. d3 {[%emt 0:03:25]} a5 {[%emt 0:09:41]} 15. bxa6 {[%emt 0:01:03]} bxa6 {[%emt 0:01:30]} (15... b5 $5 {[%cal Rb5c4]} 16. Bxd5 (16. Bxb5 Qb6 $17) 16... Bxd5 $11) 16. Nd2 {[%emt 0:02:23]} a5 {[%emt 0:13:03]} 17. Qf3 {[%emt 0:05:55]} (17. Ne4 $5 {[%cal Rb2a3]}) 17... Qb6 {[%emt 0:10:54]} (17... Nb4 $11 {keeps the balance.} 18. Bxe6 fxe6) 18. Ba3 $1 $16 {[%emt 0:02:39]} ({Of course not} 18. Bxd5 $6 Bxd5 19. Qxd5 Qxb2 $11) 18... Rfd8 {[%emt 0:00:18]} 19. Rab1 {[%emt 0:00:40]} (19. Ne4 $142 $1) 19... Qc7 {[%emt 0:06:16]} 20. Rb5 {[%emt 0:01:46]} (20. g3 $1 $16) 20... Qf4 $1 $14 {[%emt 0:01:52]} 21. Qxf4 {[%emt 0:13:03]} Nxf4 {[%emt 0:00:11]} 22. Bxe6 {[%emt 0:04:53]} (22. g3 $5 {[%cal Rg3f4]} Nd5 23. Nb3 $14) 22... Nxe6 {[%emt 0:00:23]} 23. Nc4 {[%emt 0:01:03]} a4 {[%emt 0:00:23]} 24. Bd6 {[%emt 0:02:45]} Ra6 {[%emt 0:10:31]} 25. Be7 {[%emt 0:01:42]} Re8 {[%emt 0:01:58]} 26. Bb4 {[%emt 0:00:06]} Rc8 {[%emt 0:00:36]} 27. Ra1 {[%emt 0:02:50]} Bf8 {[%emt 0:07:20]} 28. Bxf8 {[%emt 0:00:44]} Kxf8 {[%emt 0:00:01]} 29. g3 {[%emt 0:01:16]} Kg7 {[%emt 0:02:03]} 30. h4 {[%emt 0:00:32]} Rc5 {[%emt 0:00:40]} (30... Rca8 $11 {remains equal.}) 31. Rb4 $16 {[%emt 0:00:24]} a3 {[%emt 0:00:16]} 32. Rb3 {[%emt 0:00:17]} h5 {[%emt 0:02:08]} 33. Raxa3 {[%emt 0:00:39]} Rxa3 {[%emt 0:00:07]} 34. Rxa3 {[%emt 0:00:03][%mdl 4096] Endgame KRN-KRN} Rc7 {[%emt 0:00:31]} 35. Kg2 {[%emt 0:00:25]} f5 {[%emt 0:01:03]} (35... Nd8 $16 36. Ra4 Ne6) 36. Ra6 $18 {[%emt 0:01:10]} Kf6 {[%emt 0:00:10]} 37. f4 {[%emt 0:02:38]} Rb7 {[%emt 0:02:01]} 38. Rc6 {[%emt 0:00:39]} Rb1 {[%emt 0:00:25]} 39. Ne5 {[%emt 0:00:11]} Rd1 {[%emt 0:00:36]} 40. Nf3 {[%emt 0:03:27]} Ke7 {[%emt 0:01:41]} 41. Kf2 {[%emt 0:00:04]} Rc1 {[%emt 0:00:46]} 42. Ke2 {[%emt 0:00:07]} Rh1 {[%emt 0:00:20]} 43. Kf2 {[%emt 0:01:49]} Rc1 {[%emt 0:00:13]} 44. Ne5 {[%emt 0:00:00]} Kf6 {[%emt 0:02:06] [#]} 45. Nxg6 $1 {[%emt 0:01:42][%mdl 512]} Kxg6 {[%emt 0:00:01]} 46. Rxe6+ {[%emt 0:00:07] KR-KR} Kg7 {[%emt 0:00:13]} (46... Kf7 $142 47. Rd6 Rxc2+ 48. Kf3 Rh2 49. Rxd4 Ra2) 47. Rc6 {[%emt 0:00:09]} Rh1 {[%emt 0:00:17]} 48. c4 {[%emt 0:01:17]} Rh2+ $2 {[%emt 0:01:49] [#]} (48... dxc3 49. Rxc3 Rh2+ 50. Ke1 Rh1+ 51. Kd2 Rh2+ 52. Kc1 Kf7) 49. Ke1 $1 {[%emt 0:00:21] White is clearly winning.} Rh1+ {[%emt 0:00:06]} 50. Kd2 {[%emt 0:00:24] Threatens to win with Kc2.} Rh2+ {[%emt 0:00:05]} 51. Kd1 {[%emt 0:00:05]} Rh1+ {[%emt 0:00:05] [#]} 52. Kc2 $1 {[%emt 0:00:16]} Rh2+ {[%emt 0:00:07]} 53. Kb3 {[%emt 0:00:21]} Rd2 {[%emt 0:00:07]} 54. c5 {[%emt 0:00:07][%cal Bc4c5,Bc5c6][%mdl 32] Rd6 is the strong threat.} Rxd3+ {[%emt 0:00:07]} 55. Kc4 {[%emt 0:00:02]} Rxg3 {[%emt 0:01:02]} 56. Rd6 {[%emt 0:00:25]} Kf7 {[%emt 0:02:35]} 57. c6 {[%emt 0:01:04]} Ke7 {[%emt 0:00:14]} 58. Rxd4 {[%emt 0:00:06]} Rg1 {[%emt 0:00:28]} 59. Kc5 {[%emt 0:00:39]} Rc1+ {[%emt 0:00:22]} 60. Kb6 {[%emt 0:00:04] Weighted Error Value: White=0.18 (very precise) /Black=0.29 (precise)} 1-0

[Event "Vezerkepzo GM May 2022"]
[Site "Budapest"]
[Date "2022.05.21"]
[Round "5.2"]
[White "Fule, Simon"]
[Black "Mazur, Stefan"]
[Result "0-1"]
[ECO "C47"]
[WhiteElo "2297"]
[BlackElo "2423"]
[Annotator "TA"]
[PlyCount "78"]
[EventDate "2022.05.18"]
[EventType "tourn"]
[EventCountry "HUN"]
[SourceTitle "playchess.com"]
[Source "ChessBase"]
[SourceQuality "1"]
[TimeControl "5400+30"]

{[%evp 12,78,-8,-25,4,1,0,0,0,-10,-11,-7,0,0,22,16,19,18,24,24,72,49,42,47,61,17,37,0,0,0,0,0,15,0,0,-46,-35,-72,-62,-47,-18,-75,-75,-73,-79,-82,-80,-65,-76,-54,-52,-89,-27,-362,-332,-324,-286,-29984,-29985,-29990,-29991,-29991,-29992,-29992,-29991,-29991,-29990,-29992,-29993]} 1. e4 {[%emt 0:01:02]} e5 {[%emt 0:07:41]} 2. Nf3 {[%emt 0:00:03]} Nc6 {[%emt 0:00:34]} 3. Nc3 {[%emt 0:00:13]} Nf6 {[%emt 0:01:01]} 4. Be2 {[%emt 0:00:10]} d5 {[%emt 0:02:07]} 5. exd5 {[%emt 0:00:15]} Nxd5 {[%emt 0:00:54]} 6. O-O {[%emt 0:00:16]} Nxc3 {[%emt 0:01:35]} 7. bxc3 {[%emt 0:00:21]} Bd6 {[%emt 0:00:17] C47: Scotch Four Knights and Four Knights with 4 g3.} (7... e4 $5 {[%cal Re4f3]} 8. Ne1 Bd6 $11) 8. d4 {[%emt 0:00:17]} O-O {[%emt 0:01:42]} 9. Re1 {[%emt 0:00:21]} h6 {[%emt 0:06:13] Prevents Bg5. The position is equal.} 10. h3 {[%emt 0:00:51] [#]} e4 $146 {[%emt 0:04:20] Prevents Bd3.} ({Predecessor:} 10... Bf5 11. Rb1 Rb8 12. Be3 exd4 13. Nxd4 Nxd4 14. cxd4 Qf6 15. Bd3 Bxd3 16. Qxd3 b6 {1-0 (53) Lagno,K (2556)-Pogonina,N (2465) Khanty-Mansiysk 2018}) 11. Nd2 {[%emt 0:05:15]} Qh4 {[%emt 0:03:58][%cal Oe4e3]} 12. Bc4 {[%emt 0:26:32]} Bf5 {[%emt 0:00:53]} 13. Rb1 {[%emt 0:10:13]} Na5 {[%emt 0:09:27]} 14. Rb5 {[%emt 0:01:36][%csl LRa5,LRf5]} Nxc4 {[%emt 0:04:29]} 15. Nxc4 {[%emt 0:02:21]} Bg6 {[%emt 0:11:50]} (15... Qf6 $11) 16. Nxd6 {[%emt 0:13:38]} cxd6 {[%emt 0:00:07]} 17. Rxb7 {[%emt 0:00:27]} f5 {[%emt 0:03:02]} 18. Ba3 {[%emt 0:21:47]} Qf6 {[%emt 0:09:04]} 19. f4 {[%emt 0:03:55]} Rf7 {[%emt 0:03:24]} 20. Rb3 {[%emt 0:04:53]} Rc7 {[%emt 0:02:25]} 21. Qd2 {[%emt 0:02:33]} Re8 {[%emt 0:07:00]} 22. Re3 {[%emt 0:01:37]} Bf7 {[%emt 0:02:59][%cal Bg6f7,Bf7d5,Bd5c4][%mdl 32]} 23. Rb2 {[%emt 0:01:11]} (23. d5 $11) 23... Bd5 {[%emt 0:03:57][%mdl 1024] Black has compensation.} 24. Rb5 {[%emt 0:01:32]} Bc4 {[%emt 0:01:16]} 25. Ra5 {[%emt 0:00:19]} Rb7 {[%emt 0:01:58]} 26. Bb4 {[%emt 0:00:27]} (26. d5 $1 $11 {remains equal.}) 26... d5 $17 {[%emt 0:00:58]} 27. Kh2 {[%emt 0:00:51]} Kh7 {[%emt 0:00:08]} 28. g3 {[%emt 0:00:28]} g5 {[%emt 0:02:24] Hoping for ...gxf4.} 29. Qf2 {[%emt 0:00:30]} Rg7 {[%emt 0:00:08] Black is more active.} 30. a3 {[%emt 0:00:43]} Reg8 {[%emt 0:00:47]} 31. Rc5 {[%emt 0:00:24] [#]} h5 {[%emt 0:01:59]} ({Better is} 31... Rf7 $1 $17) 32. fxg5 $2 {[%emt 0:00:40][%mdl 8192] This move loses the game for White.} (32. Ba5 $1 $11 {and White stays safe.}) 32... Qxg5 $19 {[%emt 0:00:49][%cal Of5f4] Threatens to win with ...f4!} 33. h4 {[%emt 0:00:27]} Qg4 {[%emt 0:00:30][%cal Of5f4] aiming for ...f4!} 34. Ba5 $2 {[%emt 0:00:43] [#]} (34. Rxc4 $19 f4 35. gxf4 (35. Qxf4 Qxf4 36. gxf4 Rg2+ 37. Kh1 dxc4 $19)) 34... f4 $1 {[%emt 0:01:21] Black mates.} 35. gxf4 {[%emt 0:00:13]} Qg2+ {[%emt 0:01:18]} 36. Qxg2 {[%emt 0:00:05]} Rxg2+ {[%emt 0:00:05]} 37. Kh1 {[%emt 0:00:13]} Rg1+ {[%emt 0:00:24]} 38. Kh2 {[%emt 0:00:05]} R8g2+ {[%emt 0:00:05]} 39. Kh3 {[%emt 0:00:05]} Bf1 {[%emt 0:00:08] Weighted Error Value: White=0.44/Black=0.08 (flawless)} 0-1

[Event "Vezerkepzo GM May 2022"]
[Site "Budapest"]
[Date "2022.05.21"]
[Round "5.3"]
[White "Dudin, Gleb"]
[Black "Karavade, Eesha"]
[Result "1-0"]
[ECO "D38"]
[WhiteElo "2473"]
[BlackElo "2348"]
[Annotator "TA"]
[PlyCount "67"]
[EventDate "2022.05.18"]
[EventType "tourn"]
[EventCountry "HUN"]
[SourceTitle "playchess.com"]
[Source "ChessBase"]
[SourceQuality "1"]
[TimeControl "5400+30"]

{[%evp 13,67,0,7,0,17,0,20,0,0,0,0,0,5,4,4,0,21,21,-6,-6,0,0,0,-40,-37,-35,-39,-57,-3,-30,-22,-35,-27,-25,5,0,42,35,37,36,38,43,99,99,186,185,180,143,710,710,697,687,932,933,29988,29989]} 1. d4 {[%emt 0:01:20]} d5 {[%emt 0:00:29]} 2. c4 {[%emt 0:00:08]} e6 {[%emt 0:00:18]} 3. Nf3 {[%emt 0:00:29]} Nf6 {[%emt 0:00:11]} 4. Nc3 {[%emt 0:00:39]} Bb4 {[%emt 0:00:35]} 5. Qa4+ {[%emt 0:01:32]} Nc6 {[%emt 0:00:08]} 6. a3 {[%emt 0:00:12]} Bxc3+ {[%emt 0:03:54]} 7. bxc3 {[%emt 0:00:09]} Bd7 {[%emt 0:05:56][%cal Oc6d4]} 8. cxd5 $1 {[%emt 0:01:06] 8.cxd5 is better than 8.Qc2. D38: Queen's Gambit Declined: Ragozin Defence (4 Nf3 Bb4).} exd5 {[%emt 0:02:58]} 9. Qc2 {[%emt 0:00:50]} h6 {[%emt 0:09:39]} 10. Bf4 {[%emt 0:00:41] The position is equal.} O-O {[%emt 0:03:45]} 11. e3 {[%emt 0:00:14]} Na5 {[%emt 0:00:26]} 12. Bd3 {[%emt 0:03:40]} Re8 {[%emt 0:00:50]} 13. O-O {[%emt 0:02:27] [#]} Rc8 $146 {[%emt 0:01:36]} ({Predecessor:} 13... Ne4 14. Ne5 Nf6 15. f3 c5 16. Nxd7 Qxd7 17. Be5 Qe6 18. Rae1 Rac8 19. Bf5 Qc6 20. Bxc8 Rxc8 {1-0 (32) Tomaszewski,K (2312)-Bobinski,A Katowice 2020}) 14. Ne5 {[%emt 0:19:15]} Be6 {[%emt 0:00:27]} 15. h3 {[%emt 0:01:43]} c5 {[%emt 0:00:48]} 16. Qb2 {[%emt 0:00:46]} Ne4 {[%emt 0:11:54]} 17. f3 {[%emt 0:28:12]} Nd6 {[%emt 0:00:41]} 18. Rae1 {[%emt 0:01:10]} cxd4 {[%emt 0:11:51]} 19. cxd4 {[%emt 0:01:30]} f6 {[%emt 0:15:21]} 20. Ng4 {[%emt 0:07:43]} h5 {[%emt 0:07:06]} (20... Nac4 $15 21. Qe2 Nf5) 21. Nf2 {[%emt 0:03:54]} (21. Bxd6 $5 Qxd6 22. Nf2 $11) 21... Nac4 {[%emt 0:01:13] Pair of Knights!} 22. Qa2 {[%emt 0:01:16]} Bf7 {[%emt 0:00:22]} 23. a4 {[%emt 0:06:20]} Qa5 {[%emt 0:04:08]} 24. Re2 {[%emt 0:00:36][%cal Be1e2,Be2a2,Ba2a6,Ba6a7][%mdl 32]} a6 {[%emt 0:05:48]} (24... g5 $5 {[%cal Rg5f4]} 25. Bg3 a6 $11) 25. Rb1 {[%emt 0:00:46][%cal Bf1b1,Bb1b3,Bb3b7,Bb7f7][%mdl 32]} b5 {[%emt 0:04:35]} 26. axb5 {[%emt 0:00:32] [#] Strongly threatening Qxa5.} Qxa2 {[%emt 0:00:05]} 27. Rxa2 {[%emt 0:00:06]} Nxb5 {[%emt 0:02:35]} (27... axb5 $14 28. h4 Red8) 28. Rxa6 $16 {[%emt 0:00:29]} Nc3 {[%emt 0:00:10]} (28... Nc7 $16 29. Ra7 Ne6) 29. Rb3 $18 {[%emt 0:06:44]} Nxe3 {[%emt 0:02:59][%cal Oe3c2]} 30. Ra7 {[%emt 0:00:49] [#] Rbb7 is the strong threat.} Ned1 $2 {[%emt 0:03:21][%mdl 8192] Loses the game.} (30... Nc2 $16) 31. Nxd1 {[%emt 0:00:43]} Nxd1 {[%emt 0:00:13]} 32. Rbb7 {[%emt 0:00:50]} Re1+ {[%emt 0:00:03]} 33. Kh2 {[%emt 0:00:16]} Nf2 {[%emt 0:00:54]} 34. Rxf7 {[%emt 0:00:47] Weighted Error Value: White=0.07 (flawless) /Black=0.46} 1-0

[Event "Vezerkepzo GM May 2022"]
[Site "Budapest"]
[Date "2022.05.22"]
[Round "6.1"]
[White "Turzo, Attila"]
[Black "Pacher, Milan"]
[Result "0-1"]
[ECO "D97"]
[WhiteElo "2338"]
[BlackElo "2394"]
[Annotator "TA"]
[PlyCount "86"]
[EventDate "2022.05.18"]
[EventType "tourn"]
[EventCountry "HUN"]
[SourceTitle "playchess.com"]
[Source "ChessBase"]
[SourceQuality "1"]
[TimeControl "5400+30"]

{[%evp 14,86,19,19,24,4,0,0,0,0,0,-16,0,-8,0,-72,-56,-74,-78,-66,-55,-104,-116,-123,-80,-156,-78,-98,-81,-85,-81,-81,-70,-63,-67,-61,-61,-52,-41,-127,-111,-70,-75,-188,-222,-218,-214,-396,-174,-173,-170,-462,-456,-607,-574,-830,-810,-842,-330,-601,-673,-695,-681,-682,-528,-410,-417,-432,-432,-5106,-4682,-29995,-29996,-29997,-29998]} 1. d4 {[%emt 0:00:04]} Nf6 {[%emt 0:00:02]} 2. c4 {[%emt 0:00:12]} g6 {[%emt 0:00:03]} 3. Nc3 {[%emt 0:00:12]} d5 {[%emt 0:00:02]} 4. Nf3 {[%emt 0:01:02]} Bg7 {[%emt 0:00:03]} 5. Qb3 {[%emt 0:00:20]} dxc4 {[%emt 0:00:09]} 6. Qxc4 {[%emt 0:00:04]} O-O {[%emt 0:00:09]} 7. e4 {[%emt 0:00:07]} Nc6 {[%emt 0:00:57]} 8. Be2 {[%emt 0:04:41]} e5 $1 {[%emt 0:00:04][%cal Re5d4][%mdl 4] is more profitable than 8...Bg4 at the moment. D97: Grünfeld: Russian System: 7 e4, replies other than 7...Bg4.} 9. dxe5 {[%emt 0:07:08]} (9. d5 $5 {[%cal Rd5c6]} Ne7 10. O-O $14) 9... Ng4 {[%emt 0:01:11]} 10. O-O {[%emt 0:05:09]} Ngxe5 {[%emt 0:00:08] The position is equal.} 11. Nxe5 {[%emt 0:00:16]} Nxe5 {[%emt 0:00:03]} 12. Qb3 {[%emt 0:03:15]} c6 {[%emt 0:02:45] [#]} 13. Kh1 $146 {[%emt 0:18:55]} ({Predecessor:} 13. Be3 Qe7 14. Rad1 Be6 15. Qc2 Nc4 16. Bd4 Rfd8 17. Bxg7 Kxg7 18. b3 Ne5 19. Na4 {½-½ (41) Iotov,V (2569)-Sarkar,J (2452) Dallas 2014}) 13... b5 {[%emt 0:06:57][%cal Bb7b5,Bb5b4,Bb4b3][%mdl 32]} 14. a4 {[%emt 0:05:33]} (14. Qc2 $11 {keeps the balance.}) 14... Be6 $17 {[%emt 0:01:06]} 15. Qc2 {[%emt 0:01:40]} b4 {[%emt 0:01:08]} 16. Nd1 {[%emt 0:06:42]} b3 {[%emt 0:03:36]} 17. Qc5 {[%emt 0:05:30]} (17. Qc3 $15) 17... Nd3 {[%emt 0:01:22]} 18. Qe3 {[%emt 0:01:03]} Nb4 {[%emt 0:02:10] Black is much more active.} 19. Qg3 {[%emt 0:01:53] [#]} ({Better is} 19. Rb1) 19... Nc2 {[%emt 0:01:21]} (19... Qd4 $142 $1 20. Qf4 Nc2) 20. Rb1 {[%emt 0:00:10]} Nd4 {[%emt 0:06:08]} 21. Bd3 {[%emt 0:03:02]} c5 {[%emt 0:00:35] Hoping for ...c4.} 22. Ne3 {[%emt 0:01:00] Against c4} Rc8 $36 {[%emt 0:03:43][%mdl 2048] Black has good play.} 23. Nc4 {[%emt 0:06:19]} Qd7 {[%emt 0:04:07]} 24. Bf4 {[%emt 0:05:45]} Qxa4 {[%emt 0:04:27]} 25. Ra1 {[%emt 0:00:30]} Qd7 {[%emt 0:00:04]} 26. Bd6 {[%emt 0:01:45]} (26. Rfd1 $15) 26... Rfd8 {[%emt 0:00:43] White must now prevent ...Bxc4.} 27. e5 {[%emt 0:00:10]} Nb5 {[%emt 0:05:40]} 28. Rfd1 {[%emt 0:02:18]} (28. f4 $17) 28... Nxd6 $19 {[%emt 0:01:55]} 29. exd6 {[%emt 0:06:53]} Rb8 {[%emt 0:02:32]} ({Not} 29... Bxc4 30. Bxc4 Rb8 31. Ra3 $17) 30. Ra6 $2 {[%emt 0:04:53]} (30. Qg5) 30... Bxc4 {[%emt 0:04:48]} (30... Qb5 $142 31. Ra5 Qb4) 31. Bxc4 {[%emt 0:00:09]} Bxb2 {[%emt 0:00:08] Strongly threatening ...Rb4.} 32. Rb1 $2 {[%emt 0:00:24]} (32. Qf3 {was necessary.}) 32... Bd4 {[%emt 0:04:02]} 33. Rxb3 {[%emt 0:00:06]} Qf5 {[%emt 0:00:07][%cal Of5b1] ( -> ...Qb1+!)} 34. h3 {[%emt 0:04:01]} Be5 {[%emt 0:04:12]} 35. f4 {[%emt 0:00:59]} Bxf4 $2 {[%emt 0:00:10]} (35... Rxb3 36. Bxb3 Qb1+ 37. Kh2 Bd4) 36. Qe1 {[%emt 0:02:58]} (36. Qf3 Rxb3 37. Bxb3) 36... Rxb3 {[%emt 0:07:08]} 37. Bxb3 {[%emt 0:00:01]} Bxd6 {[%emt 0:00:35]} 38. Rxa7 {[%emt 0:00:40]} c4 {[%emt 0:02:32]} 39. Bxc4 {[%emt 0:00:30] [#]} Qf4 {[%emt 0:00:04][%csl Gd6][%cal Rf4h2]} 40. Bxf7+ {[%emt 0:00:52]} Kh8 {[%emt 0:00:02][%csl Gd6][%cal Rf4h2]} 41. g3 {[%emt 0:00:22]} (41. Qg1 $142 Rc8 42. Ra1 Qxf7 43. Qd4+ Qg7 44. Qxg7+ Kxg7 45. Rg1) 41... Qf3+ {[%emt 0:00:06]} 42. Kh2 {[%emt 0:00:07] [#]} Bxg3+ $1 {[%emt 0:00:06][%mdl 512]} 43. Qxg3 {[%emt 0:00:09]} (43. Kg1 Bf2+) 43... Rd2+ {[%emt 0:00:02] Weighted Error Value: White=0.80/Black=0.31} 0-1